fUST/lending_fUST_20250928
["ID","MTS","AMOUNT","RATE_DAILY","PERIOD"]
[388218978,1759049837610,-1650.30565809,0.00039999,31]
[388218979,1759049837636,-1650.30565809,0.00039999,31]
[388218980,1759049837661,-1650.30565809,0.00039999,31]
[388218981,1759049837686,-1650.30565809,0.00039999,31]
[388218982,1759049837710,-1650.30565809,0.00039999,31]
[388218983,1759049837737,-1650.30565809,0.00039999,31]
[388218984,1759049837762,-1650.30565809,0.00039999,31]
[388218985,1759049837787,-1650.30565809,0.00039999,31]
[388218986,1759049837811,-1650.30565809,0.00039999,31]
[388218987,1759049837835,-1650.30565809,0.00039999,31]
[388218988,1759049837859,-1650.30565809,0.00039999,31]
[388218989,1759049837883,-1650.30565809,0.00039999,31]
[388218990,1759049837909,-1650.30565809,0.00039999,31]
[388218991,1759049837934,-1650.30565809,0.00039999,31]
[388218992,1759049837958,-1650.30565809,0.00039999,31]
[388218993,1759049837983,-1650.30565809,0.00039999,31]
[388218994,1759049838007,-1650.30565809,0.00039999,31]
[388218995,1759049838187,-1650.30565809,0.00039999,31]
[388218996,1759049838218,-1650.30565809,0.00039999,31]
[388218997,1759049838244,-173.00211517,0.00039999,31]
[388218998,1759049838269,-206.51267226,0.00039999,31]
[388218999,1759049838296,-1650.30565809,0.00039999,31]
[388219000,1759049838321,-1650.30565809,0.00039999,31]
[388219001,1759049838348,-1650.30565809,0.00039999,31]
[388219002,1759049838373,-1650.30565809,0.00039999,31]
[388219003,1759049838398,-1650.30565809,0.00039999,31]
[388219004,1759049838423,-267.70195169,0.00039999,31]
[388219005,1759049838449,-1650.30565809,0.00039999,31]
[388219006,1759049838474,-1650.30565809,0.00039999,31]
[388219007,1759049838500,-1650.30565809,0.00039999,31]
[388219008,1759049838525,-1650.30565809,0.00039999,31]
[388219009,1759049838549,-1650.30565809,0.00039999,31]
[388219010,1759049838575,-1650.30565809,0.00039999,31]
[388219011,1759049838600,-1650.30565809,0.00039999,31]
[388219012,1759049838626,-500.0,0.00039999,31]
[388219013,1759049838651,-1650.30565809,0.00039999,31]
[388219014,1759049838676,-1650.30565809,0.00039999,31]
[388219015,1759049838703,-1650.30565809,0.00039999,31]
[388219016,1759049838728,-1650.30565809,0.00039999,31]
[388219017,1759049838753,-529.95649067,0.00039999,31]
[388219018,1759049838780,-1650.30565809,0.00039999,31]
[388219019,1759049838805,-1650.30565809,0.00039999,31]
[388219020,1759049838830,-1650.30565809,0.00039999,31]
[388219021,1759049838861,-1650.30565809,0.00039999,31]
[388219022,1759049838889,-1617.29954492,0.00039999,31]
[388219023,1759049838916,-1617.29954492,0.00039999,31]
[388219024,1759049838942,-1617.29954492,0.00039999,31]
[388219025,1759049838968,-1617.29954492,0.00039999,31]
[388219026,1759049838994,-1617.29954492,0.00039999,31]
[388219027,1759049839019,-1617.29954492,0.00039999,31]
[388219028,1759049839045,-1617.29954492,0.00039999,31]
[388219029,1759049839072,-1617.29954492,0.00039999,31]
[388219030,1759049839098,-1617.29954492,0.00039999,31]
[388219031,1759049839123,-1617.29954492,0.00039999,31]
[388219032,1759049839148,-1617.29954492,0.00039999,31]
[388219033,1759049839173,-1617.29954492,0.00039999,31]
[388219034,1759049839199,-1617.29954492,0.00039999,31]
[388219035,1759049839224,-1617.29954492,0.00039999,31]
[388219036,1759049839248,-1617.29954492,0.00039999,31]
[388219037,1759049839273,-1617.29954492,0.00039999,31]
[388219038,1759049839298,-1617.29954492,0.00039999,31]
[388219039,1759049839321,-1617.29954492,0.00039999,31]
[388219040,1759049839345,-1617.29954492,0.00039999,31]
[388219041,1759049839369,-2484.63825545,0.00039999,31]
[388219042,1759049839393,-100000.0,0.0004,25]
[388219043,1759049839417,-500.0,0.0004,120]
[388219044,1759049839441,-519.77163818,0.0004,30]
[388219045,1759049839464,-434.67409907,0.0004,120]
[388219046,1759049839489,-200.0,0.0004,120]
[388219047,1759049839515,-226.47,0.0004,31]
[388219048,1759049839554,-500.0,0.00040159,30]
[388219049,1759049839595,-100000.0,0.000405,25]
[388219050,1759049839621,-226.47,0.00040547,32]
[388219051,1759049839658,-407.67036905,0.00040658,120]
[388219052,1759049839697,-396.42767207,0.00040976,30]
[388219053,1759049839721,-150.0,0.00040976,30]
[388219054,1759049839745,-100000.0,0.00041,25]
[388219055,1759049839770,-3770.5321184,0.00041,60]
[388219056,1759049839794,-158.425589,0.00041,60]
[388219057,1759049839819,-167.515401,0.00041,60]
[388219058,1759049839844,-219.2,0.00041041,120]
[388219059,1759049839870,-226.47,0.00041095,33]
[388219060,1759049839908,-500.0,0.00041095,120]
[388219061,1759049839932,-169.0950664,0.00041096,120]
[388219062,1759049839971,-500.0,0.00041369,120]
[388219063,1759049839997,-100000.0,0.000415,25]
[388219064,1759049840023,-226.47,0.00041643,34]
[388219065,1759049840061,-500.0,0.00041643,120]
[388219066,1759049840086,-398.8407811,0.00041644,30]
[388219067,1759049840111,-597.8014249,0.00041699,30]
[388219068,1759049840151,-500.0,0.00041917,120]
[388219069,1759049840175,-133247.09252551,0.00041999,120]
[388219070,1759049840199,-200.0,0.00042,120]
[388219071,1759049840224,-226.47,0.00042191,35]
[388219072,1759049840249,-500.0,0.00042191,120]
[388219073,1759049840275,-200.0,0.00042302,120]
[388219074,1759049840300,-212806.34359931,0.00042431,120]
[388219075,1759049840326,-500.0,0.00042465,120]
[388219076,1759049840351,-100000.0,0.000425,25]
[388219077,1759049840376,-209.0,0.000426,120]
[388219078,1759049840401,-226.47,0.00042739,36]
[388219079,1759049840426,-500.0,0.00042739,120]
[388219080,1759049840450,-22446.56855116,0.00043,120]
[388219081,1759049840476,-500.0,0.00043013,120]
[388219082,1759049840501,-4012.16207705,0.00043138,86]
[388219083,1759049840527,-5000.0,0.00043138,86]
[388219084,1759049840552,-5000.0,0.00043138,85]
[388219085,1759049840730,-226.57,0.00043287,37]
[388219086,1759049840758,-500.0,0.00043287,120]
[388219087,1759049840783,-608.60020667,0.00043486,60]
[388219088,1759049840808,-100000.0,0.000435,25]
[388219089,1759049840836,-500.0,0.00043561,120]
[388219090,1759049840862,-500.0,0.00043835,120]
[388219091,1759049840887,-1491.67761443,0.000439,120]
[388219092,1759049840912,-80067.5879575,0.00043987,60]
[388219093,1759049840937,-200.0,0.00044,120]
[388219094,1759049840962,-500.0,0.00044109,120]
[388219095,1759049840985,-188.93,0.000443,120]
[388219096,1759049841010,-500.0,0.00044383,120]
[388219097,1759049841034,-202.45637284,0.000445,120]
[388219098,1759049841060,-500.0,0.00044657,120]
[388219099,1759049841085,-500.0,0.00044931,120]
[388219100,1759049841108,-213.5739895,0.00045,30]
[388219101,1759049841132,-21662.45386861,0.00045,30]
[388219102,1759049841157,-35000.0,0.00045,30]
[388219103,1759049841181,-8000.0,0.00045,30]
[388219104,1759049841205,-47613.92717949,0.00045,60]
[388219105,1759049841228,-228.0,0.00045,120]
[388219106,1759049841253,-3023.4266087,0.00045,120]
[388219107,1759049841276,-2945.18985631,0.000452,30]
[388219108,1759049841302,-500.0,0.00045205,120]
[388219109,1759049841329,-500.0,0.00045479,120]
[388219110,1759049841355,-500.0,0.00045753,120]
[388219111,1759049841380,-1000.0,0.00045999,120]
[388219112,1759049841404,-153.83490903,0.00045999,30]
[388219113,1759049841430,-500.0,0.00045999,30]
[388219114,1759049841456,-527.88610705,0.00045999,35]
[388219115,1759049841480,-200.0,0.00046,120]
[388219116,1759049841503,-9230.0,0.00046,120]
[388219117,1759049841527,-500.0,0.00046027,120]
[388219118,1759049841551,-563.54491766,0.00046301,120]
[388219119,1759049841576,-219.2,0.00046356,120]
[388219120,1759049841601,-151.0,0.00046398,41]
[388219121,1759049841626,-500.0,0.00046398,41]
[388219122,1759049841650,-151.0,0.00046399,41]
[388219123,1759049841676,-500.0,0.00046399,41]
[388219124,1759049841700,-10337.56358796,0.0004644,90]
[388219125,1759049841725,-151.0,0.00046499,30]
[388219126,1759049841749,-250.0,0.00046499,30]
[388219127,1759049841775,-151.0,0.00046499,120]
[388219128,1759049841800,-250.0,0.00046499,120]
[388219129,1759049841825,-16723.97453844,0.00046499,30]
[388219130,1759049841850,-500.0,0.00046499,30]
[388219131,1759049841875,-500.0,0.00046499,120]
[388219132,1759049841899,-151.60635211,0.00046573,120]
[388219133,1759049841922,-151.0,0.00046573,120]
[388219134,1759049841947,-250.0,0.00046573,120]
[388219135,1759049841970,-17300.0,0.00046573,120]
[388219136,1759049841996,-500.0,0.00046573,120]
[388219137,1759049842021,-7000.0,0.00047143,30]
[388219138,1759049842045,-7000.0,0.00047143,30]
[388219139,1759049842070,-350.0,0.00047396,30]
[388219140,1759049842094,-350.0,0.00047396,120]
[388219141,1759049842118,-200514.0,0.0004744,30]
[388219142,1759049842143,-1000000.0,0.0004744,30]
[388219143,1759049842168,-350.0,0.00047565,111]
[388219144,1759049842192,-350.0,0.0004767,120]
[388219145,1759049842216,-200.0,0.00048,120]
[388219146,1759049842240,-1517.44823634,0.00048,120]
[388219147,1759049842266,-3249.66705225,0.000484,120]
[388219148,1759049842292,-166.16520257,0.000489,120]
[388219149,1759049842317,-1500.0,0.00049,120]
[388219150,1759049842342,-15318.91992013,0.00049,120]
[388219151,1759049842367,-8109.35460204,0.00049,30]
[388219152,1759049842391,-350.0,0.0004904,30]
[388219153,1759049842417,-350.0,0.0004904,120]
[388219154,1759049842923,151.0,0.00049015,20]
[388219155,1759049842964,151.0,0.00049015,20]
[388219156,1759049843201,198.0,0.00049015,20]
[388219157,1759049843255,151.0,0.00049015,20]
[388219158,1759049843295,151.0,0.00049015,20]
[388219159,1759049843371,198.0,0.00049015,20]
[388219160,1759049843430,151.0,0.00049015,20]
[388219161,1759049843740,500.0,0.00035127,30]
[388219162,1759049843896,916.92994028,0.0004035,30]
[388219163,1759049844497,151.0,0.00049015,20]
[388219164,1759049844606,151.0,0.00049015,20]
[388219165,1759049844680,508.87263721,0.00041086,30]
[388219166,1759049844796,198.0,0.00049015,20]
[388219167,1759049844826,616.35339593,0.0004877,60]
[388219168,1759049845728,151.0,0.00049015,20]
[388219169,1759049845900,151.0,0.00049015,20]
[388219170,1759049846121,198.0,0.00049015,20]
[388219171,1759049847763,159.41833437,0.00049015,20]
[388219172,1759049848162,854.71526695,0.00035317,30]
[388219173,1759049848858,500.0,0.00049015,20]
[388219174,1759049849027,500.0,0.00049015,20]
[388219175,1759049849215,500.0,0.00049015,20]
[388219176,1759049849374,500.0,0.00049015,20]
[388219177,1759049849557,500.0,0.00049015,20]
[388219178,1759049849814,259.892825,0.00049015,20]
[388219179,1759049852573,500.0,0.00035191,30]
[388219180,1759049853212,500.0,0.00042588,30]
[388219181,1759049854605,151.0,0.00049015,20]
[388219182,1759049854983,151.0,0.00049015,20]
[388219183,1759049855189,198.83231785,0.00049015,20]
[388219184,1759049858128,195.11802291,0.00039999,31]
[388219185,1759049858182,217.72677569,0.00039999,31]
[388219186,1759049858286,500.0,0.00039999,31]
[388219187,1759049858320,500.0,0.00039999,31]
[388219188,1759049858373,500.0,0.00039999,31]
[388219189,1759049858506,500.0,0.00039999,31]
[388219190,1759049858546,500.0,0.00039999,31]
[388219191,1759049858580,500.0,0.00039999,31]
[388219192,1759049858609,500.0,0.00039999,31]
[388219193,1759049858639,500.0,0.00039999,31]
[388219194,1759049858675,500.0,0.00039999,31]
[388219195,1759049858726,500.0,0.00039999,31]
[388219196,1759049858786,500.0,0.00039999,31]
[388219197,1759049858817,500.0,0.00039999,31]
[388219198,1759049858895,500.0,0.00039999,31]
[388219199,1759049858929,500.0,0.00039999,31]
[388219200,1759049858964,500.0,0.00039999,31]
[388219201,1759049858999,177.33273791,0.00039999,31]
[388219202,1759049859029,500.0,0.00039999,31]
[388219203,1759049859063,500.0,0.00039999,31]
[388219204,1759049859094,500.0,0.00039999,31]
[388219205,1759049859129,500.0,0.00039999,31]
[388219206,1759049859205,500.0,0.00039999,31]
[388219207,1759049859233,500.0,0.00039999,31]
[388219208,1759049859265,500.0,0.00039999,31]
[388219209,1759049859322,500.0,0.00039999,31]
[388219210,1759049859415,500.0,0.00039999,31]
[388219211,1759049859455,500.0,0.00039999,31]
[388219212,1759049859484,500.0,0.00039999,31]
[388219213,1759049859539,500.0,0.00039999,31]
[388219214,1759049859635,500.0,0.00039999,31]
[388219215,1759049859665,500.0,0.00039999,31]
[388219216,1759049859695,500.0,0.00039999,31]
[388219217,1759049859729,500.0,0.00039999,31]
[388219218,1759049859760,500.0,0.00039999,31]
[388219219,1759049859794,500.0,0.00039999,31]
[388219417,1759049998247,280.28,0.000249,2]
[388219418,1759050006530,295.0,0.00024,120]
[388219454,1759050091606,1300.6081002,0.00025205,2]
[388219455,1759050091630,1883.76842774,0.00025205,2]
[388219479,1759050124990,-159.2550529,0.000253,2]
[388219480,1759050127289,-340.7449471,0.000253,2]
[388219481,1759050127313,-424.0022936,0.00026396,2]
[388219483,1759050136979,159.2550529,0.00028,2]
[388219485,1759050215441,189.35579204,0.00028,2]
[388219486,1759050233262,3251.28470663,0.00028,2]
[388219487,1759050248321,417.15472785,0.00028,2]
[388219488,1759050248726,218.20247988,0.00025,30]
[388219489,1759050248749,198.95224797,0.00025,30]
[388219490,1759050249154,417.15472785,0.00026,60]
[388219491,1759050281394,-616.35339593,0.00025831,16]
[388219492,1759050281417,-417.15472785,0.00028,2]
[388219495,1759050374652,233.82138094,0.00028,2]
[388219749,1759050450900,637.75689633,0.00033944,120]
[388219752,1759050510131,233.82138094,0.00028,3]
[388219753,1759050544564,225.7278469,0.0002759,60]
[388219830,1759050633168,-227.36906766,0.00028279,2]
[388219831,1759050633180,-227.36906762,0.00028288,2]
[388219832,1759050633192,-227.36906762,0.00028296,2]
[388219833,1759050633204,-227.36906762,0.00028305,2]
[388219834,1759050633217,-227.36906762,0.00028314,2]
[388219835,1759050633229,-1200.0,0.00028378,2]
[388219836,1759050633241,-153.41405171,0.00028379,2]
[388219837,1759050633271,-4147.25776029,0.00028379,2]
[388219838,1759050633283,-165.0,0.00028414,2]
[388219839,1759050633296,-300.0,0.00028414,2]
[388219840,1759050633308,-300.0,0.00028414,2]
[388219841,1759050633320,-1200.0,0.00028417,2]
[388219842,1759050633333,-177.1950767,0.00028418,2]
[388219843,1759050633345,-1004.187926,0.00028611,3]
[388219844,1759050633357,-1000.0,0.00028783,30]
[388219845,1759050633369,-233.82138094,0.00029,10]
[388219846,1759050633382,-233.82138094,0.00029,10]
[388219847,1759050633395,-233.82138094,0.00029,10]
[388219848,1759050633407,-231.3737217,0.0002911,2]
[388219849,1759050633420,-500.0,0.00029278,2]
[388219850,1759050633432,-500.0,0.00029278,2]
[388219851,1759050633445,-500.0,0.00029278,2]
[388219852,1759050633462,-500.0,0.00029278,2]
[388219853,1759050633475,-500.0,0.00029278,2]
[388219854,1759050633487,-500.0,0.00029278,2]
[388219855,1759050633501,-500.0,0.00029278,2]
[388219856,1759050633513,-500.0,0.00029278,2]
[388219857,1759050633526,-500.0,0.00029278,2]
[388219858,1759050633539,-500.0,0.00029278,2]
[388219859,1759050633552,-182.59139391,0.00029278,2]
[388219860,1759050633564,-500.0,0.00029278,2]
[388219861,1759050633576,-500.0,0.00029278,2]
[388219862,1759050633589,-500.0,0.00029278,2]
[388219863,1759050633601,-500.0,0.00029278,2]
[388219864,1759050633612,-500.0,0.00029278,2]
[388219865,1759050633625,-500.0,0.00029278,2]
[388219866,1759050633638,-500.0,0.00029278,2]
[388219867,1759050633649,-500.0,0.00029278,2]
[388219868,1759050633660,-500.0,0.00029278,2]
[388219869,1759050633671,-500.0,0.00029278,2]
[388219870,1759050633683,-500.0,0.00029278,2]
[388219871,1759050633694,-500.0,0.00029278,2]
[388219872,1759050633706,-500.0,0.00029278,2]
[388219873,1759050633717,-500.0,0.00029278,2]
[388219874,1759050633729,-500.0,0.00029278,2]
[388219875,1759050633740,-500.0,0.00029278,2]
[388219876,1759050633752,-500.0,0.00029278,2]
[388219877,1759050633763,-500.0,0.00029278,2]
[388219878,1759050633775,-500.0,0.00029278,2]
[388219879,1759050633786,-500.0,0.00029278,2]
[388219880,1759050633797,-500.0,0.00029278,2]
[388219881,1759050633809,-273.02613999,0.00029278,2]
[388219882,1759050633820,-181.79739975,0.00029278,2]
[388219883,1759050633832,-2139.00270213,0.00029278,2]
[388219884,1759050633843,-2139.00270213,0.00029278,2]
[388219885,1759050633856,-2139.00270213,0.00029278,2]
[388219886,1759050633868,-2139.00270213,0.00029278,2]
[388219887,1759050633880,-2139.00270213,0.00029278,2]
[388219888,1759050633890,-2139.00270213,0.00029278,2]
[388219889,1759050633900,-2139.00270213,0.00029278,2]
[388219890,1759050633909,-2139.00270213,0.00029278,2]
[388219891,1759050633918,-2139.00270213,0.00029278,2]
[388219892,1759050633927,-4810.21927138,0.00029279,2]
[388219893,1759050633938,-17521.30484518,0.00029279,2]
[388219904,1759050638275,-2139.00270213,0.00029278,2]
[388219905,1759050638285,-2139.00270213,0.00029278,2]
[388219906,1759050638295,-2139.00270213,0.00029278,2]
[388219907,1759050638305,-2139.00270213,0.00029278,2]
[388219908,1759050638315,-2139.00270213,0.00029278,2]
[388219909,1759050638324,-2139.00270213,0.00029278,2]
[388219910,1759050638335,-2139.00270213,0.00029278,2]
[388219911,1759050638343,-2139.00270213,0.00029278,2]
[388219912,1759050638354,-2139.00270213,0.00029278,2]
[388219913,1759050638363,-2139.00270213,0.00029278,2]
[388219914,1759050638373,-2139.00270213,0.00029278,2]
[388219915,1759050638383,-2139.00270213,0.00029278,2]
[388219916,1759050638392,-27668.47588344,0.00029279,2]
[388219917,1759050638401,-291.82568082,0.00029279,16]
[388219918,1759050638411,-500.0,0.00029552,2]
[388219919,1759050638421,-3594.4258986,0.00029751,2]
[388219920,1759050638431,-509.60937698,0.00029826,2]
[388219921,1759050638440,-184.85,0.00029884,2]
[388219922,1759050638452,-1029.70699307,0.00029895,2]
[388219923,1759050638464,-23345.272487,0.00029973,2]
[388219924,1759050638474,-225.20944342,0.00029973,2]
[388219925,1759050638483,-362.52,0.00029975,3]
[388219926,1759050638494,-181.26,0.00029975,3]
[388219927,1759050638504,-543.79,0.00029975,3]
[388219928,1759050638514,-151.0,0.00029975,2]
[388219929,1759050638524,-151.0,0.00029975,2]
[388219930,1759050638535,-151.0,0.00029975,2]
[388219931,1759050638545,-151.0,0.00029975,2]
[388219932,1759050638554,-151.0,0.00029975,2]
[388219933,1759050638564,-151.0,0.00029975,2]
[388219934,1759050638574,-151.0,0.00029975,2]
[388219935,1759050638584,-151.0,0.00029975,2]
[388219936,1759050638593,-151.0,0.00029975,2]
[388219937,1759050638603,-151.0,0.00029975,2]
[388219938,1759050638612,-151.0,0.00029975,2]
[388219939,1759050638622,-151.0,0.00029975,2]
[388219940,1759050638631,-151.0,0.00029975,2]
[388219941,1759050638641,-151.0,0.00029975,2]
[388219942,1759050638650,-151.0,0.00029975,2]
[388219943,1759050638660,-294.70866788,0.00029975,2]
[388219944,1759050638669,-155.597,0.00029995,2]
[388219945,1759050638679,-160.0,0.00029995,2]
[388219946,1759050638689,-505.22252842,0.0003,2]
[388219947,1759050638699,-500.0,0.0003,5]
[388219948,1759050638708,-500.0,0.0003,5]
[388219949,1759050638719,-500.0,0.0003,5]
[388219950,1759050638729,-500.0,0.0003,2]
[388219951,1759050638739,-1074.25,0.0003,2]
[388219952,1759050638748,-1074.25,0.0003014,2]
[388219953,1759050638758,-291.82568082,0.00030462,30]
[388219954,1759050638768,-291.82568082,0.00030462,30]
[388219955,1759050638777,-260.0,0.00030543,2]
[388219956,1759050638787,-1000.0,0.00030548,5]
[388219957,1759050638797,-1000.0,0.00030548,5]
[388219958,1759050638806,-1000.0,0.00030548,5]
[388219959,1759050638816,-859.33454273,0.00030548,2]
[388219960,1759050638826,-500.0,0.00030594,7]
[388219961,1759050638846,-500.0,0.00030605,7]
[388219962,1759050638857,-420.0,0.00030674,2]
[388219963,1759050638867,-158.0,0.00030674,2]
[388219964,1759050638877,-1680.0,0.00030677,2]
[388219965,1759050638887,-500.0,0.00030721,7]
[388219966,1759050638896,-1029.70699305,0.00030756,2]
[388219967,1759050638906,-1680.0,0.00030769,2]
[388219968,1759050638916,-360.0,0.00031091,2]
[388219969,1759050638925,-1500.0,0.00031096,5]
[388219970,1759050638934,-1500.0,0.00031096,5]
[388219971,1759050638944,-725.04,0.00031345,3]
[388219972,1759050638953,-362.52,0.00031345,3]
[388219973,1759050638963,-236.3,0.00031435,14]
[388219974,1759050638973,-439.5341768,0.00031437,7]
[388219975,1759050638983,-151.0,0.00031438,2]
[388219976,1759050638993,-500.0,0.00031438,2]
[388219977,1759050639003,-500.0,0.00031438,2]
[388219978,1759050639012,-500.0,0.00031438,2]
[388219979,1759050639022,-500.0,0.00031438,2]
[388219980,1759050639033,-500.0,0.00031438,2]
[388219981,1759050639042,-500.0,0.00031438,2]
[388219982,1759050639052,-151.0,0.00031438,2]
[388219983,1759050639062,-500.0,0.00031438,2]
[388219984,1759050639072,-151.0,0.00031438,2]
[388219985,1759050639082,-500.0,0.00031438,2]
[388219986,1759050639091,-151.0,0.00031438,2]
[388219987,1759050639101,-500.0,0.00031438,2]
[388219988,1759050639111,-151.0,0.00031438,2]
[388219989,1759050639121,-500.0,0.00031438,2]
[388219990,1759050639131,-500.0,0.00031438,2]
[388219991,1759050639142,-151.0,0.00031438,2]
[388219992,1759050639151,-500.0,0.00031438,2]
[388219993,1759050639162,-151.34192869,0.00031438,2]
[388219994,1759050639171,-230.65981031,0.00031438,2]
[388219995,1759050639181,-276.68408791,0.00031438,2]
[388219996,1759050639191,-151.0,0.00031438,2]
[388219997,1759050639202,-151.0,0.00031438,2]
[388219998,1759050639211,-167.64638775,0.00031438,2]
[388219999,1759050639221,-500.0,0.00031438,2]
[388220000,1759050639230,-151.0,0.00031438,2]
[388220001,1759050639239,-151.0,0.00031438,2]
[388220002,1759050639248,-500.0,0.00031438,2]
[388220003,1759050639257,-255.60759689,0.00031438,2]
[388220004,1759050639267,-500.0,0.00031438,2]
[388220005,1759050639277,-500.0,0.00031438,2]
[388220006,1759050639286,-500.0,0.00031438,2]
[388220007,1759050639295,-23345.272487,0.00031497,2]
[388220008,1759050639305,-225.20944342,0.00031497,2]
[388220009,1759050639314,-4025.08,0.00031507,60]
[388220010,1759050639323,-1029.70699305,0.00031618,2]
[388220011,1759050639332,-460.0,0.00031639,2]
[388220012,1759050639342,-2000.0,0.00031644,5]
[388220013,1759050639351,-1002.2098458,0.00031644,5]
[388220014,1759050639360,-151.0,0.000317,11]
[388220015,1759050639369,-151.0,0.00031712,2]
[388220016,1759050639379,-500.0,0.00031712,2]
[388220017,1759050639388,-500.0,0.00031712,2]
[388220018,1759050639398,-500.0,0.00031712,2]
[388220019,1759050639408,-500.0,0.00031712,2]
[388220020,1759050639417,-500.0,0.00031712,2]
[388220021,1759050639427,-500.0,0.00031712,2]
[388220022,1759050639436,-151.0,0.00031712,2]
[388220023,1759050639446,-500.0,0.00031712,2]
[388220024,1759050639460,-159.41833437,0.00031712,2]
[388220025,1759050639469,-501.16751151,0.00031712,2]
[388220026,1759050639480,-151.0,0.00031712,2]
[388220027,1759050639489,-500.0,0.00031712,2]
[388220028,1759050639500,-151.0,0.00031712,2]
[388220029,1759050639510,-500.0,0.00031712,2]
[388220030,1759050639519,-500.0,0.00031712,2]
[388220031,1759050639531,-151.0,0.00031712,2]
[388220032,1759050639540,-500.0,0.00031712,2]
[388220033,1759050639549,-422.97284881,0.00031712,2]
[388220034,1759050639558,-568.24192355,0.00031712,2]
[388220035,1759050639567,-500.0,0.00031712,2]
[388220036,1759050639577,-500.0,0.00031712,2]
[388220037,1759050639587,-500.0,0.00031712,2]
[388220038,1759050639597,-199.28531797,0.000318,2]
[388220039,1759050639606,-189.35579204,0.00031927,2]
[388220040,1759050639615,-160.0,0.00031927,2]
[388220041,1759050639625,-160.0,0.00031927,2]
[388220042,1759050639634,-236.3,0.00031983,15]
[388220043,1759050639644,-151.0,0.00031986,2]
[388220044,1759050639795,-500.0,0.00031986,2]
[388220045,1759050639821,-500.83231785,0.00031986,2]
[388220046,1759050639830,-152.36600658,0.00031986,2]
[388220047,1759050639840,-578.86185286,0.00031986,2]
[388220048,1759050639850,-500.0,0.00031986,2]
[388220050,1759050639860,-500.0,0.00031986,2]
[388220051,1759050639869,-151.0,0.00031986,2]
[388220052,1759050639879,-603.76112541,0.00031986,2]
[388220053,1759050639888,-464.15015184,0.00031986,2]
[388220055,1759050639898,-151.0,0.00031986,2]
[388220057,1759050639908,-601.46340903,0.00031986,2]
[388220059,1759050639917,-500.0,0.00031986,2]
[388220061,1759050639927,-153.66096207,0.00031986,2]
[388220063,1759050639937,-500.0,0.00031986,2]
[388220064,1759050639946,-500.0,0.00031986,2]
[388220065,1759050639955,-608.27281064,0.00031986,2]
[388220066,1759050639965,-500.0,0.00031986,2]
[388220067,1759050639974,-609.92796288,0.00032,120]
[388220068,1759050639984,-172.24902901,0.00032,120]
[388220069,1759050639994,-151.0,0.000321,18]
[388220070,1759050640004,-560.0,0.00032187,2]
[388220071,1759050640014,-2500.0,0.00032192,5]
[388220072,1759050640024,-151.0,0.0003226,2]
[388220073,1759050640034,-500.0,0.0003226,2]
[388220074,1759050640043,-500.0,0.0003226,2]
[388220075,1759050640053,-500.0,0.0003226,2]
[388220076,1759050640062,-151.0,0.0003226,2]
[388220077,1759050640072,-151.0,0.0003226,2]
[388220078,1759050640081,-256.67978749,0.0003226,2]
[388220079,1759050640091,-500.0,0.0003226,2]
[388220080,1759050640100,-500.0,0.0003226,2]
[388220081,1759050640110,-500.0,0.0003226,2]
[388220082,1759050640120,-500.0,0.00032287,7]
[388220083,1759050640130,-501.21203747,0.000323,5]